[Event "28th CRO-chT Women 2019"]
[Site "Mali Losinj"]
[Date "2019.10.03"]
[Round "7.3"]
[White "Roklicer, Heike"]
[Black "Mican, Karmela"]
[Result "1-0"]
[ECO "E18"]
[WhiteElo "2032"]
[BlackElo "1885"]
[Annotator "NA"]
[PlyCount "111"]
[EventDate "2019.09.28"]
[EventType "team-tourn"]
[EventCountry "CRO"]
[SourceTitle "playchess.com"]
[Source "ChessBase"]
[SourceQuality "1"]
[TimeControl "40/5400+30:1800+30"]

1. d4 {[%emt 0:02:30]} d5 {[%emt 0:00:30]} 2. c4 {[%emt 0:00:30]} e6 {[%emt 0:00:00]} 3. Nc3 {[%emt 0:00:00]} Nf6 {[%emt 0:00:00]} 4. Nf3 {[%emt 0:00:00]} Be7 {[%emt 0:00:00]} 5. g3 {[%emt 0:00:30]} O-O {[%emt 0:00:00]} 6. Bg2 {[%emt 0:00:00]} b6 {[%emt 0:02:30]} 7. O-O {[%emt 0:00:00]} Bb7 {[%emt 0:00:00]} 8. Ne5 {[%emt 0:00:30]} Nbd7 {[%emt 0:06:00]} 9. cxd5 {[%emt 0:00:30]} exd5 {[%emt 0:00:30]} 10. Qa4 {[%emt 0:09:30]} Nb8 {[%emt 0:15:30]} 11. b4 {[%emt 0:19:30]} Ne4 {[%emt 0:08:30]} 12. Nxe4 {[%emt 0:10:30]} dxe4 {[%emt 0:00:30]} 13. Bb2 {[%emt 0:21:30]} Bd5 {[%emt 0:07:30]} 14. Ng4 {[%emt 0:11:30]} Bg5 {[%emt 0:10:30]} 15. h4 {[%emt 0:05:22]} f5 {[%emt 0:01:30]} 16. Ne5 {[%emt 0:03:01]} Be7 {[%emt 0:05:30]} 17. e3 {[%emt 0:00:30]} Bd6 {[%emt 0:01:30]} 18. Rfc1 {[%emt 0:02:49]} a6 {[%emt 0:05:30]} 19. a3 {[%emt 0:00:55]} b5 {[%emt 0:01:30]} 20. Qc2 {[%emt 0:00:07]} Qe7 {[%emt 0:02:30]} 21. Nd3 {[%emt 0:02:39]} Nd7 {[%emt 0:03:30]} 22. Nc5 {[%emt 0:00:51]} Nf6 {[%emt 0:00:30]} 23. Bh3 {[%emt 0:04:25]} Ng4 {[%emt 0:01:30]} 24. Qe2 {[%emt 0:01:10]} h5 {[%emt 0:00:30]} 25. a4 {[%emt 0:02:26]} g5 {[%emt 0:00:30]} 26. Bxg4 {[%emt 0:00:58]} hxg4 {[%emt 0:00:30]} 27. Kg2 {[%emt 0:00:42]} gxh4 {[%emt 0:04:30]} 28. Rh1 {[%emt 0:00:01]} h3+ {[%emt 0:00:00]} 29. Kh2 {[%emt 0:00:07]} Qg5 {[%emt 0:02:00]} 30. Nd7 {[%emt 0:01:09]} bxa4 {[%emt 0:02:55]} 31. Ne5 {[%emt 0:00:39]} Bxb4 {[%emt 0:01:18]} 32. Rxa4 {[%emt 0:00:09]} a5 {[%emt 0:01:03]} 33. Rc1 {[%emt 0:00:52]} Bb3 {[%emt 0:01:35]} 34. Raa1 {[%emt 0:00:01]} Bd6 {[%emt 0:01:48]} 35. Ba3 {[%emt 0:01:02]} Rfe8 {[%emt 0:08:56]} 36. Qb5 {[%emt 0:00:29]} a4 {[%emt 0:03:00]} 37. Rc6 {[%emt 0:00:30]} Bxe5 {[%emt 0:02:01]} 38. dxe5 {[%emt 0:00:02]} Qg7 {[%emt 0:01:13]} 39. Bb2 {[%emt 0:00:48]} Kh7 {[%emt 0:01:34]} 40. Bd4 {[%emt 0:00:00]} Reb8 {[%emt 0:00:00]} 41. Qc5 {[%emt 0:04:46]} Rc8 {[%emt 0:15:43]} 42. e6 {[%emt 0:02:30]} Qg5 {[%emt 0:09:56]} 43. e7 {[%emt 0:06:21]} Bf7 {[%emt 0:01:35]} 44. Rf6 {[%emt 0:02:02]} Bg6 {[%emt 0:01:21]} 45. Qe5 {[%emt 0:01:11]} Rg8 {[%emt 0:01:55]} 46. Rf8 {[%emt 0:00:57]} Re8 {[%emt 0:01:15]} 47. Rxg8 {[%emt 0:07:04]} Rxg8 {[%emt 0:00:22]} 48. Rxa4 {[%emt 0:00:19]} Be8 {[%emt 0:01:10]} 49. Ra6 {[%emt 0:02:49]} c6 {[%emt 0:00:39]} 50. Ra8 {[%emt 0:01:19]} Qg6 {[%emt 0:01:13]} 51. Rd8 {[%emt 0:02:15]} Qf7 {[%emt 0:00:53]} 52. Rd6 {[%emt 0:01:19]} Qg7 {[%emt 0:00:34]} 53. Qxf5+ {[%emt 0:00:25]} Bg6 {[%emt 0:00:14]} 54. Bxg7 {[%emt 0:02:54]} Bxf5 {[%emt 0:00:16]} 55. Bf8 {[%emt 0:00:03]} Bg6 {[%emt 0:00:56]} 56. e8=Q {[%emt 0:00:08]} 1-0

[Event "28th CRO-chT Women 2019"]
[Site "Mali Losinj"]
[Date "2019.10.03"]
[Round "7.4"]
[White "Ascic, Josipa"]
[Black "Dejanovic, Tereza"]
[Result "0-1"]
[ECO "B84"]
[WhiteElo "1692"]
[BlackElo "1811"]
[Annotator "NA"]
[PlyCount "76"]
[EventDate "2019.09.28"]
[EventType "team-tourn"]
[EventCountry "CRO"]
[SourceTitle "playchess.com"]
[Source "ChessBase"]
[SourceQuality "1"]
[TimeControl "40/5400+30:1800+30"]

1. e4 {[%emt 0:00:30]} c5 {[%emt 0:00:30]} 2. Nf3 {[%emt 0:00:30]} d6 {[%emt 0:00:00]} 3. d4 {[%emt 0:00:00]} cxd4 {[%emt 0:00:00]} 4. Nxd4 {[%emt 0:00:00]} Nf6 {[%emt 0:00:00]} 5. Nc3 {[%emt 0:00:30]} a6 {[%emt 0:00:00]} 6. Be2 {[%emt 0:00:00]} e6 {[%emt 0:00:30]} 7. O-O {[%emt 0:00:00]} Be7 {[%emt 0:01:30]} 8. Kh1 {[%emt 0:01:30]} b5 {[%emt 0:04:30]} 9. a3 {[%emt 0:00:30]} Bb7 {[%emt 0:00:30]} 10. Qd3 {[%emt 0:01:30]} O-O {[%emt 0:01:30]} 11. f4 {[%emt 0:01:30]} Nbd7 {[%emt 0:01:30]} 12. Bf3 {[%emt 0:01:30]} Nc5 {[%emt 0:03:30]} 13. Qe2 {[%emt 0:00:30]} Qc7 {[%emt 0:03:30]} 14. Bd2 {[%emt 0:07:30]} Rfd8 {[%emt 0:04:30]} 15. Rac1 {[%emt 0:03:30]} Rab8 {[%emt 0:07:30]} 16. b4 {[%emt 0:05:30]} Ncd7 {[%emt 0:03:30]} 17. Nb3 {[%emt 0:01:30]} Nb6 {[%emt 0:02:30]} 18. Na5 {[%emt 0:04:30]} Ba8 {[%emt 0:02:30]} 19. Qf2 {[%emt 0:09:30]} Nfd7 {[%emt 0:09:30]} 20. Rfd1 {[%emt 0:07:30]} Bf6 {[%emt 0:00:30]} 21. e5 {[%emt 0:07:30]} dxe5 {[%emt 0:02:30]} 22. Ne4 {[%emt 0:02:30]} exf4 {[%emt 0:14:30]} 23. Nxf6+ {[%emt 0:00:30]} Nxf6 {[%emt 0:00:30]} 24. Bxa8 {[%emt 0:00:30]} Nxa8 {[%emt 0:02:30]} 25. Bxf4 {[%emt 0:05:30]} e5 {[%emt 0:01:30]} 26. Bxe5 {[%emt 0:04:30]} Qxe5 {[%emt 0:07:30]} 27. Nc6 {[%emt 0:00:30]} Rxd1+ {[%emt 0:00:30]} 28. Rxd1 {[%emt 0:00:30]} Qh5 {[%emt 0:00:30]} 29. Qd4 {[%emt 0:02:30]} Re8 {[%emt 0:02:30]} 30. Rf1 {[%emt 0:06:30]} Nc7 {[%emt 0:02:30]} 31. c4 {[%emt 0:02:30]} bxc4 {[%emt 0:02:30]} 32. Qxc4 {[%emt 0:00:30]} Qb5 {[%emt 0:00:30]} 33. Qxb5 {[%emt 0:01:30]} axb5 {[%emt 0:00:30]} 34. Kg1 {[%emt 0:00:30]} h6 {[%emt 0:00:41]} 35. Nd4 {[%emt 0:00:30]} Ra8 {[%emt 0:00:59]} 36. Rc1 {[%emt 0:00:30]} Nfd5 {[%emt 0:00:32]} 37. Nxb5 {[%emt 0:00:30]} Nxb5 {[%emt 0:00:14]} 38. Rc5 {[%emt 0:00:30]} Ndc3 {[%emt 0:00:21]} 0-1

[Event "28th CRO-chT Women 2019"]
[Site "Mali Losinj"]
[Date "2019.10.03"]
[Round "7.6"]
[White "Djukic, Sandra"]
[Black "Starcevic, Andrea"]
[Result "1-0"]
[ECO "D37"]
[WhiteElo "2179"]
[BlackElo "1888"]
[Annotator "NA"]
[PlyCount "125"]
[EventDate "2019.09.28"]
[EventType "team-tourn"]
[EventCountry "CRO"]
[SourceTitle "playchess.com"]
[Source "ChessBase"]
[SourceQuality "1"]
[TimeControl "40/5400+30:1800+30"]

1. d4 {[%emt 0:06:30]} d5 {[%emt 0:00:30]} 2. c4 {[%emt 0:00:30]} e6 {[%emt 0:00:00]} 3. Nf3 {[%emt 0:00:30]} Nf6 {[%emt 0:00:00]} 4. Nc3 {[%emt 0:00:30]} Be7 {[%emt 0:03:30]} 5. Bf4 {[%emt 0:02:30]} a6 {[%emt 0:03:30]} 6. e3 {[%emt 0:00:30]} Nbd7 {[%emt 0:01:30]} 7. h3 {[%emt 0:00:30]} c5 {[%emt 0:01:30]} 8. cxd5 {[%emt 0:23:30]} exd5 {[%emt 0:00:30]} 9. Bd3 {[%emt 0:00:30]} O-O {[%emt 0:04:30]} 10. O-O {[%emt 0:06:30]} Re8 {[%emt 0:09:30]} 11. Rc1 {[%emt 0:06:30]} c4 {[%emt 0:18:30]} 12. Bb1 {[%emt 0:00:30]} Nf8 {[%emt 0:00:30]} 13. Ne5 {[%emt 0:03:30]} Ng6 {[%emt 0:06:30]} 14. Bg3 {[%emt 0:02:30]} b5 {[%emt 0:06:30]} 15. Nc6 {[%emt 0:13:30]} Qb6 {[%emt 0:00:30]} 16. Nxe7+ {[%emt 0:00:30]} Rxe7 {[%emt 0:00:30]} 17. Re1 {[%emt 0:10:50]} Bb7 {[%emt 0:04:30]} 18. b3 {[%emt 0:05:01]} Rd8 {[%emt 0:08:30]} 19. f3 {[%emt 0:05:31]} Rde8 {[%emt 0:07:30]} 20. Bf2 {[%emt 0:00:14]} Qd6 {[%emt 0:02:12]} 21. bxc4 {[%emt 0:00:32]} dxc4 {[%emt 0:03:02]} 22. Bxg6 {[%emt 0:05:17]} hxg6 {[%emt 0:00:23]} 23. e4 {[%emt 0:00:03]} Qf4 {[%emt 0:03:14]} 24. Rb1 {[%emt 0:02:49]} Qc7 {[%emt 0:05:40]} 25. a4 {[%emt 0:00:15]} Qa5 {[%emt 0:00:23]} 26. Qc1 {[%emt 0:01:46]} b4 {[%emt 0:00:54]} 27. Na2 {[%emt 0:00:52]} b3 {[%emt 0:02:17]} 28. Nc3 {[%emt 0:00:03]} Rc7 {[%emt 0:00:52]} 29. Rd1 {[%emt 0:01:24]} Nd7 {[%emt 0:02:40]} 30. Be1 {[%emt 0:00:46]} Qb6 {[%emt 0:01:02]} 31. Kh1 {[%emt 0:00:02]} Qf6 {[%emt 0:01:07]} 32. Bg3 {[%emt 0:00:16]} Rcc8 {[%emt 0:00:37]} 33. a5 {[%emt 0:00:34]} Qd8 {[%emt 0:01:09]} 34. Ra1 {[%emt 0:01:00]} Nb8 {[%emt 0:00:52]} 35. d5 {[%emt 0:00:41]} Nd7 {[%emt 0:00:28]} 36. Rd4 {[%emt 0:00:16]} Ne5 {[%emt 0:01:07]} 37. Bxe5 {[%emt 0:00:07]} Rxe5 {[%emt 0:00:04]} 38. f4 {[%emt 0:00:37]} Rh5 {[%emt 0:01:00]} 39. Qe3 {[%emt 0:00:40]} g5 {[%emt 0:00:48]} 40. Qf3 {[%emt 0:00:00]} Rh6 {[%emt 0:00:00]} 41. e5 {[%emt 0:07:54]} Rc5 {[%emt 0:15:01]} 42. fxg5 {[%emt 0:04:32]} Qxg5 {[%emt 0:00:29]} 43. Rf1 {[%emt 0:03:01]} Rc7 {[%emt 0:05:29]} 44. Qf4 {[%emt 0:16:31]} Rg6 {[%emt 0:04:33]} 45. g4 {[%emt 0:00:07]} Qh4 {[%emt 0:02:52]} 46. Kh2 {[%emt 0:00:13]} Rh6 {[%emt 0:00:52]} 47. Qg3 {[%emt 0:00:21]} Qd8 {[%emt 0:01:14]} 48. d6 {[%emt 0:01:56]} Rc5 {[%emt 0:01:32]} 49. Qf4 {[%emt 0:00:14]} Qd7 {[%emt 0:00:26]} 50. Rxc4 {[%emt 0:00:59]} Rxa5 {[%emt 0:00:59]} 51. Rc7 {[%emt 0:00:12]} Qe8 {[%emt 0:02:41]} 52. Rxb7 {[%emt 0:00:07]} Rxe5 {[%emt 0:00:41]} 53. Qxf7+ {[%emt 0:01:02]} Qxf7 {[%emt 0:00:06]} 54. Rfxf7 {[%emt 0:00:40]} Re3 {[%emt 0:00:20]} 55. Rxg7+ {[%emt 0:00:23]} Kh8 {[%emt 0:00:09]} 56. Ne4 {[%emt 0:00:33]} Rxe4 {[%emt 0:00:18]} 57. Rge7 {[%emt 0:00:29]} Rxe7 {[%emt 0:01:23]} 58. dxe7 {[%emt 0:00:05]} Re6 {[%emt 0:00:19]} 59. Rb8+ {[%emt 0:00:12]} Kg7 {[%emt 0:00:00]} 60. e8=Q {[%emt 0:00:00]} Rxe8 {[%emt 0:00:00]} 61. Rxe8 {[%emt 0:00:16]} a5 {[%emt 0:00:11]} 62. Rb8 {[%emt 0:00:30]} a4 {[%emt 0:00:30]} 63. Rb4 {[%emt 0:00:30]} 1-0

[Event "28th CRO-chT Women 2019"]
[Site "Mali Losinj"]
[Date "2019.10.03"]
[Round "7.7"]
[White "Klaric, Nikolina"]
[Black "Berke, Ana"]
[Result "0-1"]
[ECO "A36"]
[WhiteElo "1731"]
[BlackElo "2060"]
[Annotator "NA"]
[PlyCount "104"]
[EventDate "2019.09.28"]
[EventType "team-tourn"]
[EventCountry "CRO"]
[SourceTitle "playchess.com"]
[Source "ChessBase"]
[SourceQuality "1"]
[TimeControl "40/5400+30:1800+30"]

1. c4 {[%emt 0:00:30]} c5 {[%emt 0:07:30]} 2. Nc3 {[%emt 0:00:00]} Nc6 {[%emt 0:00:30]} 3. g3 {[%emt 0:01:00]} g6 {[%emt 0:00:00]} 4. Bg2 {[%emt 0:00:30]} Bg7 {[%emt 0:00:00]} 5. e3 {[%emt 0:00:30]} d6 {[%emt 0:00:30]} 6. Nge2 {[%emt 0:01:30]} e5 {[%emt 0:01:30]} 7. Nd5 {[%emt 0:09:30]} Nge7 {[%emt 0:00:30]} 8. Nec3 {[%emt 0:01:30]} O-O {[%emt 0:00:30]} 9. O-O {[%emt 0:01:30]} Rb8 {[%emt 0:00:30]} 10. Rb1 {[%emt 0:05:30]} a6 {[%emt 0:01:30]} 11. b4 {[%emt 0:17:30]} cxb4 {[%emt 0:01:30]} 12. Nxb4 {[%emt 0:00:30]} Bf5 {[%emt 0:02:30]} 13. e4 {[%emt 0:03:30]} Be6 {[%emt 0:01:30]} 14. d3 {[%emt 0:00:30]} Nxb4 {[%emt 0:03:30]} 15. Rxb4 {[%emt 0:00:30]} Qa5 {[%emt 0:00:30]} 16. Qa4 {[%emt 0:15:30]} Qc7 {[%emt 0:06:30]} 17. Bd2 {[%emt 0:02:30]} Nc6 {[%emt 0:02:30]} 18. Rb2 {[%emt 0:02:30]} Nd4 {[%emt 0:02:30]} 19. Rfb1 {[%emt 0:02:30]} Bd7 {[%emt 0:04:30]} 20. Qd1 {[%emt 0:02:30]} Bc6 {[%emt 0:00:30]} 21. Be3 {[%emt 0:12:13]} h6 {[%emt 0:02:30]} 22. Ne2 {[%emt 0:02:33]} Nxe2+ {[%emt 0:02:30]} 23. Qxe2 {[%emt 0:00:11]} f5 {[%emt 0:01:30]} 24. Bb6 {[%emt 0:02:52]} Qf7 {[%emt 0:02:30]} 25. f3 {[%emt 0:00:46]} h5 {[%emt 0:01:30]} 26. h3 {[%emt 0:01:14]} Bh6 {[%emt 0:02:30]} 27. Qe1 {[%emt 0:01:01]} Kh7 {[%emt 0:01:30]} 28. Qa5 {[%emt 0:01:39]} Rbc8 {[%emt 0:00:30]} 29. Qb4 {[%emt 0:00:41]} Qd7 {[%emt 0:02:30]} 30. Qe1 {[%emt 0:01:10]} Bg7 {[%emt 0:04:30]} 31. Qe2 {[%emt 0:00:52]} Rf7 {[%emt 0:01:30]} 32. Qe1 {[%emt 0:00:45]} Rcf8 {[%emt 0:00:30]} 33. Qb4 {[%emt 0:03:49]} Qe7 {[%emt 0:01:30]} 34. Re2 {[%emt 0:02:04]} Qf6 {[%emt 0:04:30]} 35. Qe1 {[%emt 0:00:43]} g5 {[%emt 0:00:30]} 36. a3 {[%emt 0:02:18]} Qg6 {[%emt 0:02:30]} 37. Qd2 {[%emt 0:02:31]} Bh6 {[%emt 0:01:30]} 38. Qe1 {[%emt 0:00:10]} g4 {[%emt 0:00:30]} 39. hxg4 {[%emt 0:00:36]} fxg4 {[%emt 0:01:30]} 40. fxg4 {[%emt 0:00:00]} Qxg4 {[%emt 0:00:00]} 41. Rf2 {[%emt 0:16:41]} Rxf2 {[%emt 0:03:00]} 42. Bxf2 {[%emt 0:00:09]} Rg8 {[%emt 0:00:30]} 43. Qf1 {[%emt 0:09:32]} Rg7 {[%emt 0:03:30]} 44. Bh3 {[%emt 0:02:54]} Qf3 {[%emt 0:01:30]} 45. Bg2 {[%emt 0:00:20]} Qf6 {[%emt 0:03:30]} 46. Qe2 {[%emt 0:00:25]} Qg5 {[%emt 0:01:30]} 47. Qf3 {[%emt 0:01:03]} Bd7 {[%emt 0:04:30]} 48. Qf8 {[%emt 0:03:42]} h4 {[%emt 0:05:30]} 49. Qxd6 {[%emt 0:00:46]} hxg3 {[%emt 0:00:30]} 50. Bc5 {[%emt 0:00:41]} Qh5 {[%emt 0:01:30]} 51. Kf1 {[%emt 0:00:21]} Bd2 {[%emt 0:02:30]} 52. Qb6 {[%emt 0:00:39]} Rf7+ {[%emt 0:00:30]} 0-1

[Event "28th CRO-chT Women 2019"]
[Site "Mali Losinj"]
[Date "2019.10.03"]
[Round "7.8"]
[White "Bogdanic, Katarina"]
[Black "Batory, Lucija"]
[Result "1/2-1/2"]
[ECO "E18"]
[WhiteElo "1899"]
[BlackElo "1683"]
[Annotator "NA"]
[PlyCount "70"]
[EventDate "2019.09.28"]
[EventType "team-tourn"]
[EventCountry "CRO"]
[SourceTitle "playchess.com"]
[Source "ChessBase"]
[SourceQuality "1"]
[TimeControl "40/5400+30:1800+30"]

1. Nf3 {[%emt 0:00:30]} e6 {[%emt 0:00:30]} 2. c4 {[%emt 0:00:00]} Nf6 {[%emt 0:00:00]} 3. g3 {[%emt 0:00:00]} d5 {[%emt 0:00:00]} 4. Bg2 {[%emt 0:00:30]} b6 {[%emt 0:00:30]} 5. O-O {[%emt 0:00:30]} Bb7 {[%emt 0:00:30]} 6. d4 {[%emt 0:00:30]} Be7 {[%emt 0:02:30]} 7. Nc3 {[%emt 0:05:30]} O-O {[%emt 0:00:30]} 8. b3 {[%emt 0:04:30]} c5 {[%emt 0:00:30]} 9. dxc5 {[%emt 0:05:30]} Bxc5 {[%emt 0:02:30]} 10. cxd5 {[%emt 0:04:30]} Nxd5 {[%emt 0:00:30]} 11. Nxd5 {[%emt 0:01:30]} Qxd5 {[%emt 0:02:30]} 12. Bb2 {[%emt 0:03:30]} Qh5 {[%emt 0:11:30]} 13. Rc1 {[%emt 0:02:30]} Nc6 {[%emt 0:01:30]} 14. Qc2 {[%emt 0:04:30]} Rac8 {[%emt 0:01:30]} 15. Qb1 {[%emt 0:00:30]} Rfd8 {[%emt 0:03:30]} 16. Rfd1 {[%emt 0:00:30]} a5 {[%emt 0:02:30]} 17. Rxd8+ {[%emt 0:01:30]} Nxd8 {[%emt 0:03:30]} 18. Qa1 {[%emt 0:03:30]} Qh6 {[%emt 0:07:30]} 19. Rc4 {[%emt 0:03:30]} Bf8 {[%emt 0:18:30]} 20. Rh4 {[%emt 0:08:30]} Qg6 {[%emt 0:00:30]} 21. Ne5 {[%emt 0:00:30]} Qf5 {[%emt 0:04:30]} 22. Bxb7 {[%emt 0:13:30]} Nxb7 {[%emt 0:00:30]} 23. Rf4 {[%emt 0:12:30]} Qc2 {[%emt 0:07:30]} 24. e3 {[%emt 0:08:18]} Qd2 {[%emt 0:03:30]} 25. Nc4 {[%emt 0:02:54]} Qe2 {[%emt 0:01:30]} 26. Rd4 {[%emt 0:02:51]} Bb4 {[%emt 0:02:30]} 27. Qd1 {[%emt 0:03:02]} Qxd1+ {[%emt 0:01:30]} 28. Rxd1 {[%emt 0:00:01]} b5 {[%emt 0:00:30]} 29. Ne5 {[%emt 0:02:34]} f6 {[%emt 0:00:30]} 30. Nd3 {[%emt 0:03:51]} Bc3 {[%emt 0:04:04]} 31. Bc1 {[%emt 0:01:34]} Kf7 {[%emt 0:04:10]} 32. Kg2 {[%emt 0:01:09]} Rd8 {[%emt 0:01:34]} 33. Kf1 {[%emt 0:00:30]} f5 {[%emt 0:01:21]} 34. Ke2 {[%emt 0:00:37]} Kf6 {[%emt 0:00:48]} 35. f3 {[%emt 0:00:52]} a4 {[%emt 0:01:40]} 1/2-1/2

[Event "28th CRO-chT Women 2019"]
[Site "Mali Losinj"]
[Date "2019.10.04"]
[Round "8.1"]
[White "Ivekovic, Ana"]
[Black "Salimova, Nurgyul"]
[Result "0-1"]
[ECO "D92"]
[WhiteElo "2056"]
[BlackElo "2415"]
[Annotator "NA"]
[PlyCount "72"]
[EventDate "2019.09.28"]
[EventType "team-tourn"]
[EventCountry "CRO"]
[SourceTitle "playchess.com"]
[Source "ChessBase"]
[SourceQuality "1"]
[TimeControl "40/5400+30:1800+30"]

1. d4 {[%emt 0:00:00]} Nf6 {[%emt 0:00:00]} 2. c4 {[%emt 0:00:00]} g6 {[%emt 0:00:00]} 3. Nc3 {[%emt 0:00:30]} d5 {[%emt 0:00:30]} 4. Nf3 {[%emt 0:00:30]} Bg7 {[%emt 0:00:00]} 5. Bf4 {[%emt 0:02:30]} O-O {[%emt 0:04:00]} 6. cxd5 {[%emt 0:07:30]} Nxd5 {[%emt 0:00:30]} 7. Nxd5 {[%emt 0:02:30]} Qxd5 {[%emt 0:00:00]} 8. Bxc7 {[%emt 0:09:30]} Nc6 {[%emt 0:14:00]} 9. e3 {[%emt 0:04:30]} Bf5 {[%emt 0:04:30]} 10. Qa4 {[%emt 0:13:30]} Qd7 {[%emt 0:01:30]} 11. Ba5 {[%emt 0:11:30]} Nxd4 {[%emt 0:01:30]} 12. Qxd7 {[%emt 0:00:30]} Nxf3+ {[%emt 0:00:30]} 13. gxf3 {[%emt 0:01:30]} Bxd7 {[%emt 0:00:30]} 14. Rb1 {[%emt 0:07:30]} Bf5 {[%emt 0:11:30]} 15. e4 {[%emt 0:02:30]} Be6 {[%emt 0:00:30]} 16. b3 {[%emt 0:01:30]} b6 {[%emt 0:01:30]} 17. Bb4 {[%emt 0:01:30]} Rfd8 {[%emt 0:20:30]} 18. Rd1 {[%emt 0:04:30]} Rxd1+ {[%emt 0:00:30]} 19. Kxd1 {[%emt 0:00:30]} a5 {[%emt 0:00:30]} 20. Bxe7 {[%emt 0:08:30]} a4 {[%emt 0:00:30]} 21. bxa4 {[%emt 0:01:41]} Rxa4 {[%emt 0:19:51]} 22. a3 {[%emt 0:00:46]} Bd4 {[%emt 0:01:21]} 23. Bb5 {[%emt 0:08:36]} Ra5 {[%emt 0:01:26]} 24. Bd3 {[%emt 0:04:26]} Bxf2 {[%emt 0:03:57]} 25. Ke2 {[%emt 0:00:16]} Bd4 {[%emt 0:01:29]} 26. Rd1 {[%emt 0:04:15]} Kg7 {[%emt 0:02:18]} 27. Bb5 {[%emt 0:01:23]} Be5 {[%emt 0:01:50]} 28. a4 {[%emt 0:00:23]} Bb3 {[%emt 0:01:55]} 29. Rb1 {[%emt 0:01:00]} Bxa4 {[%emt 0:00:51]} 30. Bc4 {[%emt 0:00:29]} b5 {[%emt 0:01:37]} 31. Bd5 {[%emt 0:00:04]} Ra7 {[%emt 0:00:41]} 32. Bd8 {[%emt 0:00:48]} Bxh2 {[%emt 0:01:55]} 33. Bb6 {[%emt 0:00:29]} Re7 {[%emt 0:01:37]} 34. Rc1 {[%emt 0:00:41]} b4 {[%emt 0:01:53]} 35. Rc8 {[%emt 0:00:22]} Bb5+ {[%emt 0:00:32]} 36. Ke3 {[%emt 0:00:20]} Bg1+ {[%emt 0:00:51]} 0-1

[Event "28th CRO-chT Women 2019"]
[Site "Mali Losinj"]
[Date "2019.10.04"]
[Round "8.2"]
[White "Saric, Kristina"]
[Black "Ivekovic, Zvjezdana"]
[Result "1-0"]
[ECO "C78"]
[WhiteElo "2222"]
[BlackElo "1781"]
[Annotator "NA"]
[PlyCount "113"]
[EventDate "2019.09.28"]
[EventType "team-tourn"]
[EventCountry "CRO"]
[SourceTitle "playchess.com"]
[Source "ChessBase"]
[SourceQuality "1"]
[TimeControl "40/5400+30:1800+30"]

1. e4 {[%emt 0:00:00]} e5 {[%emt 0:00:00]} 2. Nf3 {[%emt 0:00:00]} Nc6 {[%emt 0:00:00]} 3. Bb5 {[%emt 0:00:30]} a6 {[%emt 0:00:00]} 4. Ba4 {[%emt 0:00:30]} Nf6 {[%emt 0:00:00]} 5. O-O {[%emt 0:00:30]} Bc5 {[%emt 0:02:30]} 6. c3 {[%emt 0:02:30]} b5 {[%emt 0:04:30]} 7. Bc2 {[%emt 0:03:30]} d6 {[%emt 0:04:30]} 8. d4 {[%emt 0:01:30]} Bb6 {[%emt 0:00:30]} 9. h3 {[%emt 0:02:30]} O-O {[%emt 0:01:30]} 10. a4 {[%emt 0:01:30]} Bd7 {[%emt 0:01:30]} 11. axb5 {[%emt 0:02:30]} axb5 {[%emt 0:00:30]} 12. Rxa8 {[%emt 0:00:00]} Qxa8 {[%emt 0:00:30]} 13. Bg5 {[%emt 0:00:00]} Qc8 {[%emt 0:04:30]} 14. Na3 {[%emt 0:05:30]} Re8 {[%emt 0:17:30]} 15. Nxb5 {[%emt 0:06:30]} Ne7 {[%emt 0:01:30]} 16. c4 {[%emt 0:03:30]} Ng6 {[%emt 0:01:30]} 17. Nc3 {[%emt 0:01:30]} c6 {[%emt 0:02:30]} 18. dxe5 {[%emt 0:08:30]} dxe5 {[%emt 0:01:30]} 19. Nh2 {[%emt 0:05:30]} Re6 {[%emt 0:03:30]} 20. Na4 {[%emt 0:02:30]} Bd4 {[%emt 0:05:30]} 21. c5 {[%emt 0:01:30]} h6 {[%emt 0:01:30]} 22. Nb6 {[%emt 0:02:30]} Qc7 {[%emt 0:00:30]} 23. Bxf6 {[%emt 0:08:30]} Rxf6 {[%emt 0:00:00]} 24. Nxd7 {[%emt 0:04:30]} Qxd7 {[%emt 0:00:00]} 25. Ng4 {[%emt 0:01:30]} Re6 {[%emt 0:01:30]} 26. Bb3 {[%emt 0:09:30]} Re7 {[%emt 0:00:30]} 27. Ne3 {[%emt 0:03:30]} Bxc5 {[%emt 0:10:30]} 28. Nf5 {[%emt 0:00:30]} Qxd1 {[%emt 0:00:30]} 29. Nxe7+ {[%emt 0:00:00]} Nxe7 {[%emt 0:00:30]} 30. Rxd1 {[%emt 0:01:00]} Bd4 {[%emt 0:00:00]} 31. Ra1 {[%emt 0:01:30]} g5 {[%emt 0:02:00]} 32. Ra8+ {[%emt 0:00:30]} Kg7 {[%emt 0:00:00]} 33. Re8 {[%emt 0:01:30]} Ng6 {[%emt 0:00:00]} 34. Rc8 {[%emt 0:01:30]} Ne7 {[%emt 0:00:30]} 35. Rc7 {[%emt 0:00:35]} Kf6 {[%emt 0:00:30]} 36. Ba4 {[%emt 0:04:12]} Bxb2 {[%emt 0:01:30]} 37. Bxc6 {[%emt 0:00:20]} Nxc6 {[%emt 0:03:30]} 38. Rxc6+ {[%emt 0:00:07]} Kg7 {[%emt 0:00:00]} 39. g3 {[%emt 0:01:20]} Ba3 {[%emt 0:03:00]} 40. Kg2 {[%emt 0:00:00]} Be7 {[%emt 0:00:00]} 41. Kf3 {[%emt 0:02:56]} h5 {[%emt 0:16:00]} 42. g4 {[%emt 0:00:30]} h4 {[%emt 0:04:30]} 43. Ke3 {[%emt 0:00:30]} Ba3 {[%emt 0:00:30]} 44. Kd3 {[%emt 0:00:30]} Kf8 {[%emt 0:00:30]} 45. Kc4 {[%emt 0:00:30]} Ke7 {[%emt 0:00:30]} 46. Kd5 {[%emt 0:00:00]} Bb2 {[%emt 0:00:30]} 47. Rc7+ {[%emt 0:01:00]} Kf6 {[%emt 0:03:30]} 48. Kd6 {[%emt 0:01:30]} Ba3+ {[%emt 0:00:00]} 49. Kd7 {[%emt 0:00:30]} Kg6 {[%emt 0:00:00]} 50. Rc3 {[%emt 0:01:30]} Bf8 {[%emt 0:04:30]} 51. Ke8 {[%emt 0:01:30]} Bg7 {[%emt 0:05:30]} 52. Rc7 {[%emt 0:00:30]} f6 {[%emt 0:00:00]} 53. Ke7 {[%emt 0:00:30]} Bh6 {[%emt 0:03:00]} 54. Rc8 {[%emt 0:00:30]} Bg7 {[%emt 0:00:30]} 55. Rg8 {[%emt 0:00:30]} Kh7 {[%emt 0:00:30]} 56. Kf7 {[%emt 0:00:30]} Bh6 {[%emt 0:00:30]} 57. Rg6 {[%emt 0:00:30]} 1-0